bitfinex/quotes_BTCUSD_20220201
["timestamp","ask_amount","ask_price","bid_price","bid_amount"]
[1643686232026,0.90619,38541.0,38535.0,0.129787]
[1643686232027,1.08103919,38541.0,38535.0,0.129787]
[1643686232231,0.31404298,38539.0,38532.0,0.26570802]
[1643686232428,0.31404298,38539.0,38532.0,0.13590495]
[1643686232429,0.38513371,38537.0,38532.0,0.13590495]
[1643686232629,0.64618678,38536.0,38532.0,0.13590495]
[1643686232869,0.64618678,38536.0,38533.0,0.05]
[1643686233267,0.05429,38535.0,38533.0,0.05]
[1643686233467,0.0519,38534.0,38533.0,0.05]
[1643686235470,0.05119252,38534.0,38533.0,0.05]
[1643686246520,0.05119252,38534.0,38532.0,0.13132429]
[1643686246720,0.05119252,38534.0,38533.0,0.05]
[1643686249970,0.08422843,38535.0,38533.0,0.05]
[1643686250468,0.08422843,38535.0,38534.0,0.28600038]
[1643686251524,0.06490047,38536.0,38534.0,0.28600038]
[1643686252923,0.08824387,38535.0,38533.0,0.05152727]
[1643686253124,0.13824387,38535.0,38533.0,0.05152727]
[1643686253523,0.13824387,38535.0,38533.0,0.05]
[1643686253823,0.05,38535.0,38533.0,0.05]
[1643686254024,0.05,38535.0,38533.0,0.31405897]
[1643686254225,0.06490047,38536.0,38533.0,0.31405897]
[1643686255026,0.29250722,38539.0,38533.0,0.31558624]
[1643686255274,0.12820316,38538.0,38535.0,0.129794]
[1643686255678,0.12820316,38538.0,38536.0,0.05]
[1643686256979,0.05429,38537.0,38536.0,0.05]
[1643686257379,0.12820316,38538.0,38536.0,0.05]
[1643686257581,0.07820316,38538.0,38536.0,0.05]
[1643686257979,0.16679679,38539.0,38536.0,0.114896]
[1643686258179,0.0519,38539.0,38536.0,0.179791]
[1643686258579,0.1019,38539.0,38537.0,0.129789]
[1643686258780,0.05429,38538.0,38537.0,0.129789]
[1643686259613,0.05418488,38538.0,38537.0,0.129789]
[1643686263272,0.33579037,38538.0,38537.0,0.129789]
[1643686266916,0.33187229,38538.0,38537.0,0.129789]
[1643686267115,0.05418488,38538.0,38537.0,0.129789]
[1643686268517,0.00011635,38542.0,38538.0,0.129776]
[1643686268718,0.054165,38541.0,38538.0,0.194664]
[1643686269519,0.054165,38541.0,38538.0,0.19597556]
[1643686269918,0.054165,38541.0,38539.0,0.29948159]
[1643686270121,0.054165,38541.0,38539.0,0.42926059]
[1643686271065,0.054165,38541.0,38539.0,0.129779]
[1643686271867,0.27943939,38540.0,38539.0,0.129779]
[1643686272068,0.33360439,38540.0,38539.0,0.129779]
[1643686272267,0.054165,38540.0,38539.0,0.129779]
[1643686272568,0.054165,38541.0,38539.0,0.129779]
[1643686278272,0.37766484,38543.0,38539.0,0.129779]
[1643686278473,0.37766484,38543.0,38540.0,0.06489]
[1643686278870,0.2359872,38542.0,38540.0,0.06489]
[1643686279071,0.56365204,38542.0,38540.0,0.06489]
[1643686279273,0.32766484,38542.0,38540.0,0.06618987]
[1643686279472,0.52952558,38541.0,38540.0,0.00129987]
[1643686279674,0.90909042,38541.0,38540.0,0.00129987]
[1643686279873,0.97398742,38541.0,38540.0,0.00129987]
[1643686280272,0.97398742,38541.0,38539.0,0.259559]
[1643686280273,1.02398742,38541.0,38539.0,0.259559]
[1643686280476,0.96934161,38541.0,38539.0,0.2608589]
[1643686281513,0.96934161,38541.0,38539.0,0.259559]
[1643686281714,1.06460834,38541.0,38539.0,0.259559]
[1643686281915,0.32766484,38540.0,38539.0,0.259559]
[1643686282116,0.37956484,38540.0,38539.0,0.259559]
[1643686282517,0.0519,38540.0,38539.0,0.259559]
[1643686282718,0.37956484,38540.0,38539.0,0.259559]
[1643686286164,0.0519,38540.0,38539.0,0.259559]
[1643686286566,0.33185308,38540.0,38539.0,0.259559]
[1643686286766,0.0519,38540.0,38539.0,0.259559]
[1643686287065,0.0519,38540.0,38539.0,0.244559]
[1643686287667,0.32023402,38540.0,38539.0,0.244559]
[1643686288065,0.74789886,38540.0,38539.0,0.244559]
[1643686288467,0.1519,38540.0,38539.0,0.244559]
[1643686288868,0.43376659,38540.0,38539.0,0.244559]
[1643686289715,0.1519,38540.0,38539.0,0.244559]
[1643686291716,0.0519,38540.0,38539.0,0.244559]
[1643686293867,0.1519,38540.0,38539.0,0.244559]
[1643686294269,0.43756672,38540.0,38539.0,0.244559]
[1643686294467,0.1519,38540.0,38539.0,0.244559]
[1643686294866,0.32677977,38540.0,38539.0,0.244559]
[1643686296171,0.1519,38540.0,38539.0,0.244559]
[1643686301977,0.44949828,38540.0,38539.0,0.244559]
[1643686302378,0.44949828,38540.0,38539.0,0.239559]
[1643686302578,0.44949828,38540.0,38539.0,0.04958774]
[1643686302877,0.77716312,38540.0,38539.0,0.04958774]
[1643686304218,0.77716312,38540.0,38539.0,0.22936674]
[1643686304517,0.77716312,38540.0,38538.0,0.00130006]
[1643686304717,0.35685232,38539.0,38538.0,0.00130006]
[1643686304917,0.40875232,38539.0,38538.0,0.19598406]
[1643686305518,0.40875232,38539.0,38538.0,0.194684]
[1643686305918,0.40875232,38539.0,38538.0,0.189684]
[1643686306118,0.40875232,38539.0,38538.0,0.36946]
[1643686307771,0.116802,38539.0,38538.0,0.36946]
[1643686308964,0.41915198,38539.0,38538.0,0.36946]
[1643686309169,0.6949588,38539.0,38538.0,0.36946]
[1643686309564,0.86983857,38539.0,38538.0,0.36946]
[1643686309765,0.59403175,38539.0,38538.0,0.36946]
[1643686309965,0.41915198,38539.0,38538.0,0.36946]
[1643686310365,0.59403175,38539.0,38538.0,0.36946]
[1643686310566,0.86577088,38539.0,38538.0,0.36946]
[1643686311616,0.59403175,38539.0,38538.0,0.36946]
[1643686312017,0.41915198,38539.0,38538.0,0.36946]
[1643686312219,0.86699658,38539.0,38538.0,0.36946]
[1643686312721,0.59403175,38539.0,38538.0,0.36946]
[1643686313120,0.41915198,38539.0,38538.0,0.36946]
[1643686313320,0.6924443,38539.0,38538.0,0.36946]
[1643686313520,0.41915198,38539.0,38538.0,0.36946]
[1643686313720,0.69203705,38539.0,38538.0,0.36946]
[1643686313920,0.69391112,38539.0,38538.0,0.36946]
[1643686314522,0.86879089,38539.0,38538.0,0.36946]
[1643686315125,0.85,38538.0,38533.0,0.03973205]
[1643686315383,0.32766484,38535.0,38531.0,0.34039237]
[1643686315583,1.4288195,38532.0,38531.0,0.34559354]
[1643686315879,1.7548898,38532.0,38531.0,0.41051154]
[1643686316078,2.08268321,38532.0,38531.0,0.41051154]
[1643686316480,1.58268321,38532.0,38531.0,0.41051154]
[1643686316779,1.2548898,38532.0,38531.0,0.40531037]
[1643686317082,1.2548898,38532.0,38531.0,0.34039237]
[1643686317278,1.46839819,38532.0,38531.0,0.34039237]
[1643686318479,1.53331819,38532.0,38531.0,0.34039237]
[1643686318678,1.43331819,38532.0,38531.0,0.34039237]
[1643686319019,1.53331819,38532.0,38531.0,0.34039237]
[1643686320819,1.58331819,38532.0,38531.0,0.34039237]
[1643686321819,1.53331819,38532.0,38531.0,0.34039237]
[1643686323769,1.58331819,38532.0,38531.0,0.34039237]
[1643686324370,1.9111116,38532.0,38531.0,0.34039237]
[1643686324572,0.06492256,38528.0,38524.0,0.13586916]
[1643686324874,0.06492256,38528.0,38524.0,0.12984]
[1643686324875,0.39829339,38527.0,38524.0,0.12984]
[1643686325471,0.28790945,38526.0,38524.0,0.194763]
[1643686325671,0.31264418,38525.0,38524.0,0.194763]
[1643686329326,0.41264418,38525.0,38524.0,0.12984]
[1643686329528,0.41264418,38525.0,38523.0,0.129846]
[1643686329529,1.53164418,38525.0,38523.0,0.129846]
[1643686329724,0.749,38524.0,38523.0,0.129846]
[1643686330027,0.749,38524.0,38523.0,0.124846]
[1643686330028,0.97577977,38524.0,38523.0,0.124846]
[1643686330471,0.8009,38524.0,38523.0,0.124846]
[1643686330670,0.97584692,38524.0,38523.0,0.124846]
[1643686330869,0.80048,38524.0,38523.0,0.124846]
[1643686331069,0.80006,38524.0,38523.0,0.124846]
[1643686331667,1.28211425,38524.0,38523.0,0.124846]
[1643686331869,1.28211425,38524.0,38523.0,0.12642516]
[1643686332071,1.10717228,38524.0,38523.0,0.12642516]
[1643686332269,0.80006,38524.0,38523.0,0.12642516]
[1643686332673,0.97499931,38524.0,38523.0,0.12642516]
[1643686332870,0.80006,38524.0,38523.0,0.12642516]
[1643686333269,0.97499822,38524.0,38523.0,0.12642516]
[1643686333470,0.80006,38524.0,38523.0,0.12642516]
[1643686333870,0.97500072,38524.0,38523.0,0.124846]
[1643686334317,0.80006,38524.0,38523.0,0.124846]
[1643686334518,1.12313771,38524.0,38523.0,0.124846]
[1643686334717,1.29808353,38524.0,38523.0,0.124846]
[1643686334919,1.12313771,38524.0,38523.0,0.124846]
[1643686335520,1.29808425,38524.0,38523.0,0.124846]
[1643686335818,1.29806821,38524.0,38523.0,0.124846]
[1643686341182,1.29806821,38524.0,38522.0,0.00126388]
[1643686341523,0.5,38523.0,38522.0,0.00126388]
[1643686341822,0.914942,38522.0,38521.0,0.01126389]
[1643686342020,1.28512479,38522.0,38521.0,0.01126389]
[1643686342221,1.46005529,38522.0,38521.0,0.01126389]
[1643686342821,1.46005529,38522.0,38521.0,0.01]
[1643686344623,1.46005529,38522.0,38520.0,0.0012949]
[1643686344624,0.24878929,38520.0,38518.0,0.064944]
[1643686344824,0.3410201,38519.0,38518.0,0.064944]
[1643686345023,0.3910201,38519.0,38518.0,0.064944]
[1643686345270,0.4910201,38519.0,38518.0,0.064944]
[1643686346068,0.6659506,38519.0,38518.0,0.064944]
[1643686347567,0.6659506,38519.0,38518.0,0.059944]
[1643686347969,0.3768305,38519.0,38518.0,0.059944]
[1643686348372,0.2019,38519.0,38518.0,0.059944]
[1643686348569,0.0519,38519.0,38518.0,0.059944]
[1643686348770,0.549855,38525.0,38518.0,0.059944]
[1643686349027,0.17491595,38523.0,38518.0,0.059944]
[1643686349228,0.42,38525.0,38518.0,0.059944]
[1643686349830,0.42,38525.0,38518.0,0.124874]
[1643686350031,0.42,38525.0,38519.0,0.064921]
[1643686351630,0.42,38525.0,38520.0,0.129844]
[1643686351631,0.064923,38524.0,38520.0,0.129844]
[1643686351831,0.42,38525.0,38523.0,0.25180958]
[1643686352032,0.42,38525.0,38524.0,0.25320939]
[1643686352234,0.42,38525.0,38523.0,0.25180958]
[1643686352634,0.42,38525.0,38524.0,0.25388233]
[1643686353270,0.00165609,38529.0,38527.0,0.08523676]
[1643686353472,0.00165609,38529.0,38524.0,0.38369333]
[1643686353869,0.02016103,38532.0,38524.0,0.38369333]
[1643686354069,0.00143545,38530.0,38524.0,0.38369333]
[1643686354270,0.00143545,38530.0,38526.0,0.064906]
[1643686354471,0.00143545,38530.0,38526.0,0.129812]
[1643686355069,0.02016103,38532.0,38526.0,0.129812]
[1643686355070,0.12016103,38532.0,38526.0,0.129812]
[1643686355270,0.00143545,38530.0,38526.0,0.129812]
[1643686356272,0.064912,38531.0,38526.0,0.129812]
[1643686356530,0.00133473,38530.0,38526.0,0.129812]
[1643686357324,0.064912,38531.0,38526.0,0.129812]
[1643686357822,0.064914,38529.0,38526.0,0.129812]
[1643686359024,0.06627766,38529.0,38526.0,0.129812]
[1643686360024,0.064914,38529.0,38526.0,0.129812]
[1643686360286,0.06630802,38529.0,38526.0,0.129812]
[1643686361077,0.064914,38529.0,38526.0,0.129812]
[1643686361279,0.06630802,38529.0,38526.0,0.129812]
[1643686362478,0.064914,38529.0,38526.0,0.129812]
[1643686362680,0.06630255,38529.0,38526.0,0.129812]
[1643686363382,0.064914,38529.0,38526.0,0.129812]
[1643686363784,0.06629571,38529.0,38526.0,0.129812]
[1643686364020,0.06629571,38529.0,38526.0,0.179812]
[1643686364722,0.064914,38529.0,38526.0,0.179812]
[1643686364921,0.06629571,38529.0,38526.0,0.179812]
[1643686365724,0.00138171,38529.0,38526.0,0.179812]
[1643686365923,0.064911,38531.0,38526.0,0.179812]
[1643686366125,0.00138283,38529.0,38526.0,0.179812]
[1643686367127,0.064917,38529.0,38526.0,0.179812]
[1643686367328,0.06630137,38529.0,38526.0,0.179812]
[1643686368372,0.064917,38529.0,38526.0,0.179812]
[1643686368571,0.06630137,38529.0,38526.0,0.179812]
[1643686369571,0.064917,38529.0,38526.0,0.179812]
[1643686369772,0.06630113,38529.0,38526.0,0.179812]
[1643686370774,0.064917,38529.0,38526.0,0.179812]
[1643686370975,0.06630078,38529.0,38526.0,0.179812]
[1643686371175,0.06630078,38529.0,38526.0,0.17972203]
[1643686372120,0.064917,38529.0,38526.0,0.17972203]
[1643686372320,0.06630078,38529.0,38526.0,0.17972203]
[1643686373122,0.064917,38529.0,38526.0,0.17972203]
[1643686373522,0.06630084,38529.0,38526.0,0.17972203]
[1643686374324,0.064917,38529.0,38526.0,0.17972203]
[1643686376975,0.0664291,38529.0,38526.0,0.17972203]
[1643686377574,0.0015121,38529.0,38526.0,0.17972203]
[1643686377974,0.39170241,38532.0,38526.0,0.17972203]
[1643686378175,0.17488941,38532.0,38527.0,0.32480411]
[1643686378376,0.00158425,38529.0,38528.0,0.064902]
[1643686378674,0.00158425,38529.0,38528.0,0.114902]
[1643686379121,0.09163901,38531.0,38528.0,0.114902]
[1643686379326,0.26453544,38534.0,38531.0,0.22991406]
[1643686379523,0.484907,38535.0,38531.0,0.29482206]
[1643686379721,0.484907,38535.0,38531.0,0.34482206]
[1643686380322,0.09293047,38533.0,38531.0,0.34482206]
[1643686380524,0.15784147,38533.0,38531.0,0.40973006]
[1643686380721,0.15784147,38533.0,38531.0,0.179816]
[1643686380924,0.25784147,38533.0,38531.0,0.179816]
[1643686381321,0.15784147,38533.0,38531.0,0.179816]
[1643686382523,0.09293047,38533.0,38531.0,0.179816]
[1643686385577,0.16642467,38534.0,38531.0,0.179816]
[1643686386379,0.164909,38534.0,38531.0,0.179816]
[1643686386618,0.16642466,38534.0,38531.0,0.179816]
[1643686386820,0.25053253,38534.0,38531.0,0.179816]
[1643686387620,0.24901687,38534.0,38531.0,0.179816]
[1643686387820,0.25053253,38534.0,38531.0,0.179816]
[1643686388921,0.24901687,38534.0,38531.0,0.179816]
[1643686389122,0.0519,38533.0,38526.0,0.194728]
[1643686389335,0.0519,38533.0,38518.0,0.38230433]
[1643686389336,0.649,38529.0,38518.0,0.38230433]
[1643686389525,0.649,38529.0,38518.0,0.26090433]
[1643686389526,0.649,38523.0,38518.0,0.26090433]
[1643686389727,0.35295975,38522.0,38520.0,0.129864]
[1643686389923,0.6134198,38522.0,38520.0,0.15034923]
[1643686390123,0.89791333,38522.0,38520.0,0.15034923]
[1643686390385,1.33822301,38522.0,38520.0,0.129864]
[1643686391413,1.40315701,38522.0,38520.0,0.129864]
[1643686391585,0.29348834,38521.0,38520.0,0.129864]
[1643686391784,0.34538834,38521.0,38520.0,0.129864]
[1643686391984,0.44538834,38521.0,38520.0,0.129864]
[1643686392390,0.44538834,38521.0,38520.0,0.179864]
[1643686395429,0.44538834,38521.0,38520.0,0.129864]
[1643686395629,0.44538834,38521.0,38519.0,0.129872]
[1643686395828,0.42961189,38520.0,38519.0,0.129872]
[1643686396029,0.48151189,38520.0,38519.0,0.129872]
[1643686397228,0.48151189,38520.0,38519.0,0.179872]
[1643686400278,0.1519,38520.0,38519.0,0.179872]
[1643686400478,0.0519,38520.0,38519.0,0.179872]
[1643686400676,0.23987306,38522.0,38519.0,0.2448]
[1643686400878,0.064926,38524.0,38520.0,0.05]
[1643686401276,0.04003,38525.0,38520.0,0.05]
[1643686401518,0.04003,38525.0,38520.0,0.045]
[1643686402021,0.04003,38525.0,38521.0,0.29381785]
[1643686402219,0.65179951,38526.0,38521.0,0.29381785]
[1643686402422,0.47686045,38526.0,38521.0,0.29381785]
[1643686402623,0.47686045,38526.0,38521.0,0.064925]
[1643686403223,0.47686045,38526.0,38522.0,0.064922]
[1643686403525,0.65179951,38526.0,38522.0,0.064922]
[1643686404124,0.1,38525.0,38522.0,0.064922]
[1643686405971,0.3647954,38525.0,38522.0,0.064922]
[1643686406374,0.0519,38524.0,38522.0,0.064922]
[1643686406673,0.11683,38524.0,38522.0,0.064922]
[1643686407273,0.25965099,38523.0,38522.0,0.064922]
[1643686407476,0.0519,38523.0,38522.0,0.064922]
[1643686407673,0.1519,38523.0,38522.0,0.064922]
[1643686408073,0.0519,38523.0,38522.0,0.064922]
[1643686408473,0.0519,38523.0,38522.0,0.31244518]
[1643686409322,0.0519,38523.0,38522.0,0.36244518]
[1643686410121,0.3519,38523.0,38522.0,0.36244518]
[1643686410322,0.4519,38523.0,38522.0,0.36244518]
[1643686410630,0.4519,38523.0,38522.0,0.114922]
[1643686411924,0.71022154,38523.0,38522.0,0.114922]
[1643686412125,0.71022154,38523.0,38520.0,0.194774]
[1643686412326,0.164934,38522.0,38520.0,0.064925]
[1643686412525,0.35637587,38521.0,38520.0,0.064925]
[1643686412784,0.45637587,38521.0,38520.0,0.064925]
[1643686412980,0.1519,38521.0,38520.0,0.064925]
[1643686414079,0.0519,38521.0,38520.0,0.064925]
[1643686414280,0.0519,38521.0,38520.0,0.114925]
[1643686416523,0.064927,38524.0,38521.0,0.06492513]
[1643686416723,0.064927,38524.0,38521.0,0.12985013]
[1643686418326,0.064927,38524.0,38522.0,0.24760522]
[1643686418823,0.064927,38524.0,38522.0,0.29760522]
[1643686419223,0.1,38525.0,38522.0,0.29760522]
[1643686419427,0.23986306,38526.0,38523.0,0.129847]
[1643686419624,0.42249566,38526.0,38524.0,0.06492205]
[1643686419842,0.42249566,38526.0,38524.0,0.11492205]
[1643686420024,0.42249566,38526.0,38524.0,0.05]
[1643686420282,0.164924,38526.0,38524.0,0.05]
[1643686420477,0.42231108,38526.0,38524.0,0.05]
[1643686422779,0.164924,38526.0,38524.0,0.05]
[1643686422979,0.42363523,38526.0,38524.0,0.05]
[1643686423382,0.25883896,38525.0,38524.0,0.05]
[1643686423781,0.35883896,38525.0,38524.0,0.05]
[1643686424223,0.1,38525.0,38524.0,0.05]
[1643686424625,0.35943235,38525.0,38524.0,0.05]
[1643686425023,0.35943235,38525.0,38523.0,0.129847]
[1643686425226,0.37889184,38524.0,38523.0,0.064923]
[1643686425428,0.1,38524.0,38523.0,0.064923]
[1643686425824,0.064924,38526.0,38523.0,0.129849]
[1643686426025,0.33986306,38526.0,38523.0,0.129849]
[1643686426223,0.164924,38526.0,38523.0,0.129849]
[1643686426525,0.25742027,38525.0,38523.0,0.129849]
[1643686426723,0.35742027,38525.0,38523.0,0.129849]
[1643686427124,0.44932422,38525.0,38523.0,0.129849]
[1643686427970,0.35742027,38525.0,38523.0,0.129849]
[1643686428171,0.1,38525.0,38523.0,0.129849]
[1643686428370,0.33986306,38526.0,38523.0,0.129849]
[1643686428971,0.26031885,38525.0,38523.0,0.129849]
[1643686429370,0.36031885,38525.0,38523.0,0.129849]
[1643686429570,0.25727679,38524.0,38523.0,0.064923]
[1643686429771,0.1,38525.0,38523.0,0.064923]
[1643686430173,0.26745523,38524.0,38523.0,0.064923]
[1643686430472,0.1,38525.0,38523.0,0.064923]
[1643686430672,0.60572347,38526.0,38523.0,0.064923]
[1643686430871,0.93340764,38526.0,38523.0,0.129851]
[1643686432122,0.12985699,38522.0,38519.0,0.129856]
[1643686432322,0.06493,38521.0,38519.0,0.129856]
[1643686432724,0.16493,38521.0,38519.0,0.129856]
[1643686433323,0.24570925,38521.0,38519.0,0.129856]
[1643686433729,0.31332388,38520.0,38519.0,0.129856]
[1643686434122,0.41332388,38520.0,38519.0,0.129856]
[1643686434625,0.1519,38520.0,38519.0,0.129856]
[1643686434826,0.40707115,38520.0,38519.0,0.129856]
[1643686435024,0.1519,38520.0,38519.0,0.129856]
[1643686435771,0.0519,38520.0,38519.0,0.129856]
[1643686436778,0.06398978,38523.0,38520.0,0.45]
[1643686436979,0.38249473,38524.0,38522.0,0.4]
[1643686437182,0.23324881,38529.0,38523.0,0.30838682]
[1643686437376,0.42,38535.0,38523.0,0.30838682]
[1643686437377,0.38249473,38534.0,38523.0,0.30838682]
[1643686437576,0.38249473,38535.0,38523.0,0.30838682]
[1643686437776,0.38249473,38536.0,38533.0,0.2558256]
[1643686437978,0.38249473,38537.0,38534.0,0.064894]
[1643686438177,0.35626685,38539.0,38534.0,0.12978779]
[1643686438178,0.38249473,38538.0,38534.0,0.12978779]
[1643686438778,0.38249473,38539.0,38534.0,0.12978779]
[1643686439032,0.38249473,38540.0,38534.0,0.12978779]
[1643686439229,0.1,38539.0,38537.0,0.06489391]
[1643686439430,0.1746543,38539.0,38537.0,0.06489391]
[1643686440331,0.1,38540.0,38537.0,0.12978891]
[1643686440931,0.1,38540.0,38537.0,0.064895]
[1643686441331,0.09928965,38539.0,38537.0,0.12979325]
[1643686442233,0.48249473,38541.0,38537.0,0.12979325]
[1643686442434,0.064898,38540.0,38537.0,0.12979325]
[1643686442634,0.06655869,38540.0,38537.0,0.12979325]
[1643686443277,0.33974959,38540.0,38537.0,0.064895]
[1643686443476,0.72058363,38540.0,38537.0,0.059895]
[1643686443775,0.72058363,38540.0,38536.0,0.064894]
[1643686443776,0.129815,38538.0,38536.0,0.064894]
[1643686443973,0.129815,38538.0,38535.0,0.194699]
[1643686443974,0.0519,38537.0,38535.0,0.194699]
[1643686444375,0.27616413,38536.0,38535.0,0.194699]
[1643686444575,0.27616413,38536.0,38535.0,0.064909]
[1643686444777,1.0867302,38536.0,38534.0,0.129811]
[1643686444977,0.38249473,38535.0,38534.0,0.129811]
[1643686445173,0.43439473,38535.0,38534.0,0.129811]
[1643686445374,0.53439473,38535.0,38534.0,0.129811]
[1643686445576,0.42278114,38535.0,38534.0,0.129811]
[1643686445775,0.80527587,38535.0,38534.0,0.129811]
[1643686446378,0.53439473,38535.0,38534.0,0.129811]
[1643686448830,0.1519,38535.0,38534.0,0.129811]
[1643686450135,0.1,38535.0,38534.0,0.129811]
[1643686450384,0.42754284,38535.0,38534.0,0.129811]
[1643686452184,0.39693048,38532.0,38530.0,0.10024712]
[1643686452487,0.1,38531.0,38530.0,0.10024712]
[1643686453283,0.38187962,38531.0,38530.0,0.10024712]
[1643686454939,0.1,38531.0,38530.0,0.10024712]
[1643686459179,0.32437917,38534.0,38530.0,0.16515712]
[1643686459379,0.00166107,38532.0,38531.0,0.064908]
[1643686460178,0.22437917,38534.0,38531.0,0.064908]
[1643686460380,0.22437917,38534.0,38531.0,0.1947261]
[1643686460579,0.00166105,38533.0,38531.0,0.1947261]
[1643686461386,0.22437917,38534.0,38531.0,0.1947261]
[1643686461828,0.22604021,38534.0,38531.0,0.1947261]
[1643686462729,0.22437917,38534.0,38531.0,0.1947261]
[1643686462930,0.2260402,38534.0,38531.0,0.1947261]
[1643686463931,0.22437917,38534.0,38531.0,0.1947261]
[1643686464130,0.2260402,38534.0,38531.0,0.1947261]
[1643686465035,0.22437917,38534.0,38531.0,0.1947261]
[1643686465274,0.2260402,38534.0,38531.0,0.1947261]
[1643686466275,0.22437917,38534.0,38531.0,0.1947261]
[1643686466476,0.2260402,38534.0,38531.0,0.1947261]
[1643686467378,0.22437917,38534.0,38531.0,0.1947261]
[1643686467781,0.2260402,38534.0,38531.0,0.1947261]
[1643686468579,0.22437917,38534.0,38531.0,0.1947261]
[1643686469025,0.2260402,38534.0,38531.0,0.1947261]
[1643686469324,0.2779402,38534.0,38531.0,0.1947261]
[1643686469724,0.3779402,38534.0,38531.0,0.1947261]
[1643686469925,0.37627917,38534.0,38531.0,0.1947261]
[1643686470128,0.18249792,38533.0,38531.0,0.1947261]
[1643686470326,0.28249792,38533.0,38531.0,0.1947261]
[1643686470928,0.34741392,38533.0,38531.0,0.1947261]
[1643686472433,0.22429508,38530.0,38528.0,0.194727]
[1643686472989,0.22429508,38530.0,38528.0,0.32456021]
[1643686474402,0.0519,38529.0,38528.0,0.259644]
[1643686474600,1.01210722,38529.0,38528.0,0.194727]
[1643686474792,1.11210722,38529.0,38528.0,0.194727]
[1643686474994,1.43965006,38529.0,38527.0,0.064917]
[1643686475193,1.36142579,38528.0,38527.0,0.064917]
[1643686475396,1.41332579,38528.0,38524.0,0.13144513]
[1643686475592,0.649,38526.0,38524.0,0.13144513]
[1643686475792,0.870159,38525.0,38524.0,0.13144513]
[1643686475993,0.870159,38525.0,38524.0,0.129865]
[1643686476394,0.870159,38525.0,38524.0,0.13144513]
[1643686477226,0.870159,38525.0,38524.0,0.129865]
[1643686480880,1.19770184,38525.0,38524.0,0.129865]
[1643686481283,1.19270184,38525.0,38524.0,0.129865]
[1643686481482,1.19270184,38525.0,38523.0,0.06623486]
[1643686481681,0.5009183,38524.0,38523.0,0.06623486]
[1643686481880,0.6528183,38524.0,38523.0,0.06623486]
[1643686482080,0.6528183,38524.0,38523.0,0.064932]
[1643686482282,0.4019,38524.0,38523.0,0.064932]
[1643686482882,0.65717063,38524.0,38523.0,0.064932]
[1643686484131,0.1519,38524.0,38523.0,0.064932]
[1643686486329,0.0519,38524.0,38523.0,0.064932]
[1643686487532,0.40688259,38524.0,38523.0,0.064932]
[1643686487783,0.40688259,38524.0,38522.0,0.00128707]
[1643686487784,0.914935,38523.0,38522.0,0.00128707]
[1643686487978,1.39437784,38523.0,38520.0,0.129864]
[1643686488176,1.56929548,38523.0,38522.0,0.00129063]
[1643686488377,1.29437784,38523.0,38522.0,0.00129063]
[1643686488580,1.56930352,38523.0,38522.0,0.00129063]
[1643686489177,1.56930352,38523.0,38520.0,0.129864]
[1643686489377,0.1,38522.0,38521.0,0.00129066]
[1643686489580,0.32682568,38522.0,38521.0,0.00129066]
[1643686489779,0.59166858,38522.0,38521.0,0.00129066]
[1643686490179,0.89166858,38522.0,38521.0,0.00129066]
[1643686490479,0.89166858,38522.0,38520.0,0.129864]
[1643686490679,0.89166858,38522.0,38520.0,0.1311547]
[1643686491182,0.26859612,38521.0,38520.0,0.1311547]
[1643686491379,0.32049612,38521.0,38520.0,0.1311547]
[1643686491624,0.32049612,38521.0,38520.0,0.129864]
[1643686491825,0.42049612,38521.0,38520.0,0.129864]
[1643686492025,0.32049612,38521.0,38520.0,0.129864]
[1643686492227,0.42049612,38521.0,38520.0,0.129864]
[1643686492427,0.064933,38519.0,38516.0,0.129869]
[1643686492727,0.0519,38518.0,38516.0,0.129869]
[1643686493128,0.0519,38518.0,38517.0,0.129859]
[1643686499130,0.0519,38518.0,38517.0,0.179859]
[1643686499725,0.0519,38518.0,38517.0,0.129859]
[1643686501634,0.0519,38518.0,38516.0,0.13137712]
[1643686502429,0.0519,38518.0,38516.0,0.129869]
[1643686503711,0.1519,38518.0,38516.0,0.129869]
[1643686504112,0.1519,38518.0,38515.0,0.00460813]
[1643686504912,0.0519,38518.0,38515.0,0.0031]
[1643686505111,0.0519,38518.0,38515.0,0.00460814]
[1643686506115,0.0519,38518.0,38515.0,0.068039]
[1643686506312,0.0519,38518.0,38515.0,0.06956791]
[1643686506931,0.0519,38518.0,38515.0,0.34000023]
[1643686507127,0.0519,38518.0,38515.0,0.06956791]
[1643686507326,0.064929,38521.0,38515.0,0.06956791]
[1643686507525,0.064929,38521.0,38515.0,0.068039]
[1643686507725,0.064929,38521.0,38515.0,0.06956791]
[1643686508326,0.064929,38521.0,38516.0,0.12985657]
[1643686508728,0.064929,38521.0,38516.0,0.13138545]
[1643686508928,0.064929,38521.0,38516.0,0.06645788]
[1643686509128,0.064929,38521.0,38517.0,0.064928]
[1643686509927,0.064929,38521.0,38517.0,0.06645337]
[1643686510984,0.064929,38521.0,38517.0,0.064928]
[1643686511192,0.164929,38521.0,38517.0,0.06619619]
[1643686512284,0.064929,38521.0,38517.0,0.064928]
[1643686512487,0.064929,38521.0,38517.0,0.06619619]
[1643686513485,0.064929,38521.0,38517.0,0.064928]
[1643686513689,0.064929,38521.0,38517.0,0.00126819]
[1643686514651,0.064929,38521.0,38516.0,0.064929]
[1643686514848,0.064929,38521.0,38517.0,0.00128861]
[1643686515050,0.064929,38521.0,38518.0,0.064931]
[1643686515348,0.064929,38521.0,38519.0,0.064932]
[1643686515548,0.064929,38521.0,38517.0,0.00128861]
[1643686515750,0.064929,38521.0,38515.0,0.132956]
[1643686515951,0.064929,38521.0,38517.0,0.00128861]
[1643686516154,0.164929,38521.0,38517.0,0.00128861]
[1643686516850,0.49257826,38521.0,38517.0,0.00128861]
[1643686517053,0.49257826,38521.0,38515.0,0.197889]
[1643686517255,0.49257826,38521.0,38519.0,0.064932]
[1643686520082,0.32764926,38520.0,38519.0,0.064932]
[1643686520283,0.42764926,38520.0,38519.0,0.064932]
[1643686525479,0.1,38520.0,38519.0,0.064932]
[1643686525878,0.164929,38521.0,38519.0,0.064932]
[1643686526279,0.54718647,38521.0,38519.0,0.064932]
[1643686526480,0.44718647,38521.0,38519.0,0.064932]
[1643686526681,0.1,38520.0,38519.0,0.064932]